fUST/lending_fUST_20250222
["ID","MTS","AMOUNT","RATE_DAILY","PERIOD"]
[353964226,1740168640546,-334.19827629,0.00014602,2]
[353964228,1740168640557,-670.44,0.00014602,2]
[353964230,1740168640567,-500.0,0.00014602,2]
[353964233,1740168640578,-500.0,0.00014602,2]
[353964235,1740168640589,-500.0,0.00014602,2]
[353964236,1740168640599,-151.82,0.00014602,2]
[353964239,1740168640609,-500.0,0.00014602,2]
[353964241,1740168640618,-500.0,0.00014602,2]
[353964243,1740168640627,-500.0,0.00014628,2]
[353964245,1740168640637,-500.0,0.00014628,2]
[353964247,1740168640646,-500.0,0.00014628,2]
[353964249,1740168640656,-500.0,0.00014628,2]
[353964250,1740168640665,-500.0,0.00014628,2]
[353964253,1740168640674,-500.0,0.00014628,2]
[353964255,1740168640684,-500.0,0.00014628,2]
[353964257,1740168640693,-508.82,0.00014628,2]
[353964259,1740168640703,-500.0,0.00014684,2]
[353964261,1740168640711,-572.22,0.00014684,2]
[353964263,1740168640722,-3350.86,0.00014684,2]
[353964264,1740168640731,-808.73,0.00014684,2]
[353964266,1740168640741,-670.44,0.00014684,2]
[353964268,1740168640750,-500.0,0.00014684,2]
[353964270,1740168640760,-500.0,0.00014684,2]
[353964272,1740168640769,-500.0,0.00014684,2]
[353964274,1740168640778,-426.56,0.00014684,2]
[353964276,1740168640787,-600.18,0.00014684,2]
[353964278,1740168640796,-2317.4062475,0.00014706,2]
[353964280,1740168640806,-1866.85,0.00014709,2]
[353964282,1740168640815,-500.0,0.0001471,2]
[353964284,1740168640824,-500.0,0.0001471,2]
[353964286,1740168640833,-500.0,0.0001471,2]
[353964288,1740168640842,-206.81240241,0.0001471,2]
[353964290,1740168640850,-500.0,0.00014767,2]
[353964292,1740168640860,-572.22,0.00014767,2]
[353964294,1740168640869,-3350.86,0.00014767,2]
[353964296,1740168640878,-808.73,0.00014767,2]
[353964298,1740168640887,-670.44,0.00014767,2]
[353964300,1740168640896,-500.0,0.00014767,2]
[353964302,1740168640906,-500.0,0.00014767,2]
[353964304,1740168640914,-500.0,0.00014767,2]
[353964306,1740168640923,-1866.85,0.00014791,2]
[353964308,1740168640933,-1866.85,0.00014791,2]
[353964310,1740168640942,-1866.85,0.00014791,2]
[353964312,1740168640951,-500.0,0.00014792,2]
[353964314,1740168640960,-500.0,0.00014792,2]
[353964316,1740168640970,-500.0,0.00014792,2]
[353964318,1740168640979,-504.86263787,0.000148,2]
[353964320,1740168640991,-2052.41736213,0.000148,2]
[353964322,1740168641000,-151.0,0.000148,2]
[353964325,1740168641009,-500.0,0.00014849,2]
[353964327,1740168641019,-572.22,0.00014849,2]
[353964329,1740168641028,-3350.86,0.00014849,2]
[353964331,1740168641037,-808.73,0.00014849,2]
[353964333,1740168641046,-670.44,0.00014849,2]
[353964335,1740168641055,-500.0,0.00014849,2]
[353964337,1740168641065,-500.0,0.00014849,2]
[353964339,1740168641074,-259.44,0.00014849,2]
[353964341,1740168641083,-501.31698539,0.00014873,2]
[353964343,1740168641093,-500.0,0.00014873,2]
[353964344,1740168641103,-500.0,0.00014874,2]
[353964346,1740168641114,-500.0,0.00014874,2]
[353964348,1740168641124,-447.69,0.00014874,2]
[353964350,1740168641133,-420.0,0.00014883,2]
[353964352,1740168641145,-500.0,0.00014899,2]
[353964354,1740168641155,-1866.85,0.00014899,2]
[353964356,1740168641164,-1866.85,0.00014899,2]
[353964358,1740168641173,-1866.85,0.00014899,2]
[353964361,1740168641184,-1866.85,0.00014899,2]
[353964362,1740168641193,-1866.85,0.00014899,2]
[353964364,1740168641203,-1866.85,0.00014899,2]
[353964366,1740168641212,-1866.85,0.00014899,2]
[353964368,1740168641222,-1866.85,0.00014899,2]
[353964370,1740168641232,-1866.85,0.00014899,2]
[353964372,1740168641241,-1866.85,0.00014899,2]
[353964374,1740168641251,-1866.85,0.00014899,2]
[353964376,1740168641259,-1866.87,0.00014899,2]
[353964378,1740168641268,-73833.1722388,0.000149,2]
[353964380,1740168641278,-500.0,0.00014931,2]
[353964383,1740168641287,-572.22,0.00014931,2]
[353964385,1740168641296,-3350.86,0.00014931,2]
[353964386,1740168641306,-808.73,0.00014931,2]
[353964388,1740168641315,-670.44,0.00014931,2]
[353964391,1740168641324,-500.0,0.00014931,2]
[353964393,1740168641333,-500.0,0.00014931,2]
[353964395,1740168641343,-152.0622986,0.00014944,2]
[353964397,1740168641353,-500.0,0.00014956,2]
[353964399,1740168641362,-500.0,0.00014956,2]
[353964401,1740168641371,-1969.0,0.00015004,2]
[353964402,1740168641380,-538.0,0.00015004,2]
[353964404,1740168641389,-2288.0,0.00015004,2]
[353964406,1740168641398,-500.0,0.00015013,2]
[353964408,1740168641407,-572.22,0.00015013,2]
[353964409,1740168641416,-3350.86,0.00015013,2]
[353964410,1740168641425,-808.73,0.00015013,2]
[353964411,1740168641434,-670.44,0.00015013,2]
[353964412,1740168641444,-500.0,0.00015013,2]
[353964413,1740168641452,-500.0,0.00015013,2]
[353964414,1740168641461,-500.0,0.00015036,2]
[353964415,1740168641472,-375.88,0.00015039,2]
[353964416,1740168641481,-500.0,0.00015039,2]
[353964417,1740168641490,-500.0,0.00015095,2]
[353964418,1740168641499,-572.22,0.00015095,2]
[353964419,1740168641508,-3350.86,0.00015095,2]
[353964420,1740168641518,-808.73,0.00015095,2]
[353964421,1740168641527,-670.44,0.00015095,2]
[353964422,1740168641536,-500.0,0.00015095,2]
[353964423,1740168641545,-500.0,0.00015095,2]
[353964424,1740168641555,-276.42543606,0.00015121,2]
[353964425,1740168641564,-500.0,0.00015177,2]
[353964426,1740168641574,-167.34609455,0.00015177,2]
[353964427,1740168641583,-513.09302753,0.00015177,2]
[353964428,1740168641593,-453.71,0.00015178,2]
[353964429,1740168641602,-572.22,0.00015178,2]
[353964431,1740168641612,-3350.86,0.00015178,2]
[353964433,1740168641621,-808.73,0.00015178,2]
[353964435,1740168641630,-670.44,0.00015178,2]
[353964437,1740168641640,-500.0,0.00015178,2]
[353964439,1740168641650,-500.0,0.00015178,2]
[353964441,1740168641660,-151.0,0.000152,2]
[353964443,1740168641670,-572.22,0.0001526,2]
[353964445,1740168641680,-3350.86,0.0001526,2]
[353964447,1740168641689,-808.73,0.0001526,2]
[353964449,1740168641698,-670.44,0.0001526,2]
[353964451,1740168641707,-500.0,0.0001526,2]
[353964453,1740168641717,-500.0,0.0001526,2]
[353964455,1740168641726,-8686.2555575,0.00015265,2]
[353964457,1740168641735,-2200.0,0.00015303,2]
[353964459,1740168641743,-4343.12777875,0.00015332,2]
[353964461,1740168641752,-572.22,0.00015342,2]
[353964463,1740168641761,-3350.86,0.00015342,2]
[353964465,1740168641771,-808.73,0.00015342,2]
[353964467,1740168641779,-670.44,0.00015342,2]
[353964469,1740168641789,-248.03,0.00015342,2]
[353964471,1740168641798,-500.0,0.00015342,2]
[353964473,1740168641807,-850.0,0.000154,2]
[353964475,1740168641815,-1000.0,0.00015421,2]
[353964477,1740168641824,-572.22,0.00015424,2]
[353964479,1740168641834,-3350.86,0.00015424,2]
[353964481,1740168641843,-808.73,0.00015424,2]
[353964482,1740168641852,-670.44,0.00015424,2]
[353964484,1740168641861,-500.0,0.00015424,2]
[353964486,1740168641870,-572.22,0.00015506,2]
[353964488,1740168641879,-3350.86,0.00015506,2]
[353964490,1740168641888,-808.73,0.00015506,2]
[353964492,1740168641897,-670.44,0.00015506,2]
[353964494,1740168641906,-269.21,0.00015506,2]
[353964496,1740168641916,-572.31,0.00015589,2]
[353964498,1740168641925,-3350.86999999,0.00015589,2]
[353964500,1740168641934,-808.86400924,0.00015589,2]
[353964502,1740168641943,-37.94770881,0.00015589,2]
[353964505,1740168641955,-632.62229119,0.00015589,2]
[353964506,1740168641964,-151.0,0.000157,2]
[353964508,1740168641974,-161.03,0.000159,31]
[353964510,1740168641983,-161.03,0.000159,31]
[353964512,1740168641992,-161.03,0.000159,31]
[353964514,1740168642001,-161.03,0.000159,31]
[353964516,1740168642011,-161.03,0.000159,31]
[353964519,1740168642021,-161.03,0.000159,31]
[353964520,1740168642030,-161.03,0.000159,31]
[353964522,1740168642039,-1000.0,0.00016,16]
[353964525,1740168642048,-151.0,0.000161,2]
[353964527,1740168642057,-499.0,0.00016164,2]
[353964528,1740168642066,-1049.24396765,0.000162,2]
[353964530,1740168642076,-1049.24396763,0.000162,2]
[353964532,1740168642085,-161.07803881,0.000162,2]
[353964545,1740168642217,-500.0,0.00013698,2]
[353964547,1740168642227,-935.87,0.00014602,2]
[353964549,1740168642236,-935.87,0.00014684,2]
[353964551,1740168642245,-935.87,0.00014767,2]
[353964553,1740168642254,-935.87,0.00014849,2]
[353964555,1740168642263,-5347.27442049,0.00014899,5]
[353964557,1740168642273,-935.87,0.00014931,2]
[353964559,1740168642282,-935.87,0.00015013,2]
[353964560,1740168642291,-935.87,0.00015095,2]
[353964562,1740168642300,-935.87,0.00015178,2]
[353964564,1740168642309,-888.16592882,0.000162,2]
[353964565,1740168642318,-587.0,0.00016312,2]
[353964567,1740168642328,-500.0,0.00016425,2]
[353964569,1740168642337,-500.0,0.00016438,2]
[353964571,1740168642347,-400.0,0.00016438,7]
[353964573,1740168642356,-151.0,0.000165,2]
[353964574,1740168642366,-6728.78745092,0.00016547,4]
[353964575,1740168642375,-500.0,0.00016668,2]
[353964576,1740168642385,-500.0,0.00016764,7]
[353964577,1740168642394,-500.0,0.00016764,7]
[353964579,1740168642403,-500.0,0.00016764,7]
[353964581,1740168642412,-500.0,0.00016764,7]
[353964582,1740168642422,-500.0,0.00016764,7]
[353964584,1740168642431,-500.0,0.00016764,7]
[353964586,1740168642441,-500.0,0.00016764,7]
[353964588,1740168642450,-500.0,0.00016764,7]
[353964590,1740168642459,-500.0,0.00016764,7]
[353964591,1740168642471,-500.0,0.00016764,7]
[353964594,1740168642561,-500.0,0.00016764,7]
[353964595,1740168642571,-500.0,0.00016764,7]
[353964596,1740168642581,-500.0,0.00016764,7]
[353964598,1740168642590,-500.0,0.00016764,7]
[353964601,1740168642599,-500.0,0.00016764,7]
[353964603,1740168642609,-500.0,0.00016764,7]
[353964606,1740168642618,-500.0,0.00016764,7]
[353964609,1740168642627,-500.0,0.00016764,7]
[353964612,1740168642636,-500.0,0.00016764,7]
[353964615,1740168642645,-500.0,0.00016764,7]
[353964618,1740168642654,-275.48,0.00016764,7]
[353964621,1740168642663,-7438.69753278,0.00016764,7]
[353964623,1740168642672,-1049.24396763,0.00016795,2]
[353964624,1740168642682,-355.2534587,0.00016841,2]
[353964626,1740168642691,-151.0,0.000169,2]
[353964628,1740168642699,-1000.0,0.00016973,2]
[353964630,1740168642709,-1000.0,0.00017,17]
[353964632,1740168642720,-162.965097,0.00017038,2]
[353964634,1740168642729,-557.1188801,0.00017198,2]
[353964635,1740168642738,-151.0,0.000173,2]
[353964636,1740168642747,-5380.53205628,0.00017403,2]
[353964637,1740168642759,-6485.57971802,0.00017403,2]
[353964638,1740168642768,-355.163177,0.00017476,2]
[353964639,1740168642777,-396.0,0.00017498,2]
[353964640,1740168642787,-22626.47802629,0.00017526,2]
[353964641,1740168642796,-499.0,0.00017534,4]
[353964642,1740168642805,-865.26816982,0.00017625,2]
[353964643,1740168642814,-865.26816982,0.00017625,2]
[353964644,1740168642823,-865.26816982,0.00017625,2]
[353964645,1740168642833,-865.26816982,0.00017625,2]
[353964646,1740168642842,-865.26816982,0.00017625,2]
[353964647,1740168642851,-865.26816982,0.00017625,2]
[353964648,1740168642861,-865.26816982,0.00017625,2]
[353964649,1740168642870,-865.26816982,0.00017625,2]
[353964650,1740168642879,-865.26816982,0.00017625,2]
[353964651,1740168642889,-865.26816982,0.00017625,2]
[353964652,1740168642898,-865.26816982,0.00017625,2]
[353964653,1740168642907,-865.26816982,0.00017625,2]
[353964654,1740168642916,-865.26816982,0.00017625,2]
[353964655,1740168642925,-865.26816982,0.00017625,2]
[353964656,1740168642934,-865.26816982,0.00017625,2]
[353964657,1740168642943,-865.26816982,0.00017625,2]
[353964658,1740168642951,-865.26816982,0.00017625,2]
[353964659,1740168642961,-865.26816982,0.00017625,2]
[353964660,1740168642971,-865.26816982,0.00017625,2]
[353964661,1740168642979,-865.26,0.00017625,2]
[353964662,1740168642989,-381.2574156,0.00017625,2]
[353964663,1740168642998,-381.2574156,0.00017625,2]
[353964664,1740168643007,-381.2574156,0.00017625,2]
[353964665,1740168643016,-381.2574156,0.00017625,2]
[353964666,1740168643026,-381.2574156,0.00017625,2]
[353964667,1740168643036,-381.2574156,0.00017625,2]
[353964668,1740168643045,-381.2574156,0.00017625,2]
[353964669,1740168643054,-381.2574156,0.00017625,2]
[353964670,1740168643063,-381.2574156,0.00017625,2]
[353964671,1740168643073,-381.2574156,0.00017625,2]
[353964672,1740168643084,-381.2574156,0.00017625,2]
[353964673,1740168643093,-381.2574156,0.00017625,2]
[353964674,1740168643106,-381.2574156,0.00017625,2]
[353964675,1740168643116,-381.2574156,0.00017625,2]
[353964676,1740168643125,-381.2574156,0.00017625,2]
[353964677,1740168643135,-381.2574156,0.00017625,2]
[353964678,1740168643147,-381.2574156,0.00017625,2]
[353964679,1740168643157,-381.2574156,0.00017625,2]
[353964680,1740168643166,-381.2574156,0.00017625,2]
[353964681,1740168643175,-381.25,0.00017625,2]
[353964682,1740168643186,-193.45025918,0.00017625,2]
[353964683,1740168643196,-193.45025918,0.00017625,2]
[353964684,1740168643205,-193.45025918,0.00017625,2]
[353964685,1740168643214,-193.45025918,0.00017625,2]
[353964686,1740168643225,-193.45025918,0.00017625,2]
[353964687,1740168643235,-193.45025918,0.00017625,2]
[353964688,1740168643245,-193.45025918,0.00017625,2]
[353964689,1740168643255,-193.45025918,0.00017625,2]
[353964690,1740168643265,-193.45025918,0.00017625,2]
[353964691,1740168643274,-193.45025918,0.00017625,2]
[353964692,1740168643283,-193.45025918,0.00017625,2]
[353964693,1740168643293,-193.45025918,0.00017625,2]
[353964694,1740168643302,-193.45025918,0.00017625,2]
[353964695,1740168643312,-193.45025918,0.00017625,2]
[353964696,1740168643321,-193.45025918,0.00017625,2]
[353964697,1740168643331,-193.45025918,0.00017625,2]
[353964698,1740168643340,-193.45025918,0.00017625,2]
[353964699,1740168643349,-193.45025918,0.00017625,2]
[353964701,1740168643359,-193.45025918,0.00017625,2]
[353964703,1740168643367,-193.45,0.00017625,2]
[353964705,1740168643376,-500.0,0.00017705,2]
[353964707,1740168643386,-500.0,0.00017705,2]
[353964709,1740168643395,-151.0,0.00017725,2]
[353964711,1740168643404,-151.0,0.00017725,2]
[353964713,1740168643414,-313747.77930852,0.00017725,10]
[353964715,1740168643423,-3847.74709576,0.00017725,2]
[353964717,1740168643433,-1750.00242655,0.00017725,2]
[353964719,1740168643442,-501.80673335,0.00017725,2]
[353964721,1740168643451,-862.5063628,0.00017725,35]
[353964723,1740168643460,-3003.85072764,0.00017725,3]
[353964725,1740168643469,-532.74082072,0.00017725,3]
[353964727,1740168643479,-9057.38763655,0.00017725,2]
[353964729,1740168643487,-84716.37942569,0.00017725,2]
[353964731,1740168643497,-334.25,0.00017725,30]
[353964733,1740168643506,-2482.74161343,0.00017725,10]
[353964735,1740168643514,-253.517451,0.00017725,10]
[353964736,1740168643523,-500.0,0.0001776,2]
[353964737,1740168643532,-445.27675539,0.0001776,2]
[353964739,1740168643542,-500.66896772,0.0001776,2]
[353964740,1740168643551,-500.0,0.00017764,2]
[353964742,1740168643560,-166.465699,0.00017789,10]
[353964745,1740168643569,-5903.1039186,0.000178,2]
[353964747,1740168643579,-25455.17,0.000178,2]
[353964749,1740168643588,-31020.11,0.000178,2]
[353964750,1740168643598,-500.0,0.00017864,2]
[353964752,1740168643608,-823.0,0.00017879,2]
[353964755,1740168643618,-2803.35420375,0.0001789,2]
[353964757,1740168643627,-659.23851517,0.000179,2]
[353964759,1740168643637,-3000.0,0.000179,2]
[353964760,1740168643646,-2018.95906292,0.000179,2]
[353964763,1740168643656,-2018.95906292,0.000179,2]
[353964764,1740168643666,-2018.95906292,0.000179,2]
[353964766,1740168643675,-2018.95906292,0.000179,2]
[353964767,1740168643685,-2018.95906292,0.000179,2]
[353964768,1740168643694,-2018.95906292,0.000179,2]
[353964769,1740168643704,-2018.95906292,0.000179,2]
[353964770,1740168643713,-2018.95906292,0.000179,2]
[353964771,1740168643725,-2018.95906292,0.000179,2]
[353964772,1740168643734,-2018.95906292,0.000179,2]
[353964773,1740168643744,-2018.95906292,0.000179,2]
[353964774,1740168643753,-2018.95906292,0.000179,2]
[353964775,1740168643762,-2018.95906292,0.000179,2]
[353964776,1740168643771,-2018.95906292,0.000179,2]
[353964777,1740168643781,-2018.95906292,0.000179,2]
[353964778,1740168643790,-2018.95906292,0.000179,2]
[353964779,1740168643799,-2018.95906292,0.000179,2]
[353964780,1740168643808,-2018.95906292,0.000179,2]
[353964781,1740168643817,-2018.95906292,0.000179,2]
[353964782,1740168643826,-2018.95,0.000179,2]
[353964783,1740168643836,-889.60063641,0.000179,2]
[353964784,1740168643846,-889.60063641,0.000179,2]
[353964785,1740168643855,-889.60063641,0.000179,2]
[353964786,1740168643865,-889.60063641,0.000179,2]
[353964787,1740168643875,-889.60063641,0.000179,2]
[353964788,1740168643885,-889.60063641,0.000179,2]
[353964789,1740168643895,-889.60063641,0.000179,2]
[353964790,1740168643904,-889.60063641,0.000179,2]
[353964791,1740168643913,-889.60063641,0.000179,2]
[353964792,1740168643923,-889.60063641,0.000179,2]
[353964793,1740168643932,-889.60063641,0.000179,2]
[353964794,1740168643942,-889.60063641,0.000179,2]
[353964795,1740168643951,-889.60063641,0.000179,2]
[353964796,1740168643960,-889.60063641,0.000179,2]
[353964797,1740168643971,-889.60063641,0.000179,2]
[353964798,1740168643981,-889.60063641,0.000179,2]
[353964799,1740168643990,-889.60063641,0.000179,2]
[353964800,1740168643999,-889.60063641,0.000179,2]
[353964801,1740168644008,-889.60063641,0.000179,2]
[353964802,1740168644018,-889.6,0.000179,2]
[353964804,1740168644027,-451.38393808,0.000179,2]
[353964806,1740168644037,-451.38393808,0.000179,2]
[353964808,1740168644046,-451.38393808,0.000179,2]
[353964810,1740168644056,-451.38393808,0.000179,2]
[353964812,1740168644067,-451.38393808,0.000179,2]
[353964814,1740168644076,-451.38393808,0.000179,2]
[353964816,1740168644086,-451.38393808,0.000179,2]
[353964818,1740168644097,-451.38393808,0.000179,2]
[353964820,1740168644110,-451.38393808,0.000179,2]
[353964822,1740168644120,-451.38393808,0.000179,2]
[353964824,1740168644129,-451.38393808,0.000179,2]
[353964826,1740168644139,-451.38393808,0.000179,2]
[353964828,1740168644150,-451.38393808,0.000179,2]
[353964830,1740168644159,-451.38393808,0.000179,2]
[353964832,1740168644169,-451.38393808,0.000179,2]
[353964834,1740168644178,-451.38393808,0.000179,2]
[353964836,1740168644190,-451.38393808,0.000179,2]
[353964838,1740168644199,-451.38393808,0.000179,2]
[353964840,1740168644209,-451.38393808,0.000179,2]
[353964842,1740168644218,-451.38,0.000179,2]
[353964844,1740168644228,-500.0,0.0001796,2]
[353964846,1740168644237,-500.0,0.00017964,2]
[353964848,1740168644247,-500.38433033,0.00017973,2]
[353964851,1740168644258,-1500.0,0.00017975,2]
[353964853,1740168644267,-5234.49088683,0.00018,30]
[353964855,1740168644277,-182864.81662213,0.00018,15]
[353964856,1740168644295,-378.73964115,0.00018,15]
[353964859,1740168644307,-88624.62276318,0.00018,15]
[353964869,1740168644403,-500.0,0.00013698,2]
[353964871,1740168644412,-500.0,0.00013698,2]
[353964873,1740168644422,-323.1,0.00013698,2]
[353965000,1740168645962,-176.9,0.00013698,2]
[353965002,1740168645973,-500.0,0.00013698,2]
[353965004,1740168645982,-500.0,0.0001378,2]
[353965006,1740168645991,-500.0,0.0001378,2]
[353965008,1740168646000,-500.0,0.0001378,2]
[353965010,1740168646010,-156.53,0.00013863,2]
[353965012,1740168646020,-500.0,0.00013863,2]
[353965014,1740168646029,-500.0,0.00013945,2]
[353965016,1740168646038,-500.0,0.00014027,2]
[353965017,1740168646047,-500.0,0.00014109,2]
[353965018,1740168646057,-500.0,0.00014191,2]
[353965020,1740168646066,-500.0,0.00014273,2]
[353965021,1740168646153,-500.0,0.00014356,2]
[353965022,1740168646162,-500.0,0.00014438,2]
[353965023,1740168646172,-500.0,0.0001452,2]
[353965024,1740168646182,-935.87,0.0001526,2]
[353965025,1740168646192,-935.87,0.00015342,2]
[353965026,1740168646201,-935.87,0.00015424,2]
[353965027,1740168646210,-935.87,0.00015506,2]
[353965028,1740168646220,-935.98653838,0.00015589,2]
[353965029,1740168646229,-1049.24396763,0.000179,2]
[353965030,1740168646239,-2344.84292659,0.00018,15]
[353965140,1740169235758,162.965097,9.041e-05,2]
[353965149,1740169695939,88599.0,0.00019,120]
[353965151,1740169716363,1079.29552904,0.00017754,90]
[353965178,1740169832124,-168.96222638,0.000134,2]
[353965180,1740169832134,-564.74719129,0.000134,2]
[353965182,1740169832143,-254.65713877,0.00013473,2]
[353965184,1740169832152,-270.37632166,0.00013473,2]
[353965187,1740169832165,-168.26419848,0.00013473,2]
[353965189,1740169832174,-164.63772625,0.00013473,2]
[353965191,1740169832183,-500.35802189,0.00013473,2]
[353965193,1740169832192,-218.5976868,0.00013473,2]
[353965195,1740169832202,-152.29481735,0.00013473,2]
[353965197,1740169832212,-300.0,0.00013498,2]
[353965199,1740169832222,-500.0,0.00013499,2]
[353965201,1740169832231,-500.0,0.00013499,2]
[353965203,1740169832240,-500.0,0.00013499,2]
[353965205,1740169832250,-500.0,0.00013499,2]
[353965207,1740169832259,-500.0,0.00013499,2]
[353965209,1740169832268,-500.0,0.00013499,2]
[353965211,1740169832277,-500.0,0.00013499,2]
[353965213,1740169832287,-500.0,0.00013499,2]
[353965215,1740169832296,-441.98301323,0.00013499,2]
[353965217,1740169832305,-389.25557346,0.00013499,2]
[353965219,1740169832313,-500.0,0.00013499,2]
[353965221,1740169832323,-500.0,0.00013499,2]
[353965222,1740169832332,-500.0,0.00013499,2]
[353965225,1740169832342,-500.0,0.00013499,2]
[353965226,1740169832352,-500.0,0.00013499,2]
[353965227,1740169832361,-500.0,0.00013499,2]
[353965229,1740169832370,-500.0,0.00013499,2]
[353965231,1740169832379,-500.0,0.00013499,2]
[353965232,1740169832388,-500.0,0.00013499,2]
[353965234,1740169832397,-500.0,0.00013499,2]
[353965236,1740169832407,-500.0,0.00013499,2]
[353965238,1740169832416,-500.0,0.00013499,2]
[353965239,1740169832425,-500.0,0.00013499,2]
[353965240,1740169832434,-500.0,0.00013499,2]
[353965242,1740169832444,-500.0,0.00013499,2]
[353965244,1740169832453,-500.0,0.00013499,2]
[353965246,1740169832463,-500.0,0.00013499,2]
[353965247,1740169832472,-491.01011801,0.00013499,2]
[353965249,1740169832481,-500.0,0.00013499,2]
[353965251,1740169832490,-500.0,0.00013499,2]
[353965253,1740169832499,-500.0,0.00013499,2]
[353965254,1740169832508,-500.0,0.00013499,2]
[353965256,1740169832517,-500.0,0.00013499,2]
[353965258,1740169832526,-500.0,0.00013499,2]
[353965260,1740169832535,-500.0,0.00013499,2]
[353965262,1740169832545,-500.0,0.00013499,2]
[353965264,1740169832554,-396.65669434,0.00013499,2]
[353965266,1740169832564,-500.0,0.00013499,2]
[353965267,1740169832577,-168260.43839829,0.000135,2]
[353965268,1740169832683,-27930.47669083,0.000135,2]
[353965269,1740169832734,-778.40499493,0.000135,2]
[353965270,1740169832746,-119743.42730588,0.000135,2]
[353965271,1740169832755,-151.0,0.000135,2]
[353965272,1740169832765,-151.0,0.000136,2]
[353965273,1740169832774,-151.0,0.000136,2]
[353965274,1740169832783,-152.0,0.00013669,2]
[353965275,1740169832793,-500.0,0.00013673,2]
[353965276,1740169832802,-500.0,0.00013673,2]
[353965277,1740169832811,-251.15368978,0.00013673,2]
[353965278,1740169832821,-471.76413965,0.00013673,2]
[353965279,1740169832830,-601.31509688,0.00013673,2]
[353965280,1740169832839,-219.59363206,0.00013673,2]
[353965281,1740169832849,-500.0,0.00013673,2]
[353965282,1740169832860,-500.0,0.00013673,2]
[353965283,1740169832869,-540.79312879,0.00013673,2]
[353965284,1740169832878,-500.0,0.00013673,2]
[353965285,1740169832889,-500.87571488,0.00013673,2]
[353965286,1740169832898,-169.98135668,0.00013673,2]
[353965287,1740169832907,-500.65826783,0.00013673,2]
[353965288,1740169832917,-504.99250979,0.00013673,2]
[353965289,1740169832926,-500.0,0.00013673,2]
[353965290,1740169833046,-318.66250715,0.00013697,2]
[353965291,1740169833055,-277.88843999,0.00013698,2]
[353965292,1740169833065,-500.0,0.00013698,2]
[353965293,1740169833075,-500.0,0.00013698,2]
[353965294,1740169833085,-500.0,0.00013698,2]
[353965295,1740169833094,-500.0,0.00013698,2]
[353965296,1740169833104,-500.0,0.00013698,2]
[353965297,1740169833113,-500.0,0.00013698,2]
[353965298,1740169833123,-500.0,0.00013698,2]
[353965299,1740169833133,-500.0,0.00013698,2]
[353965300,1740169833143,-500.0,0.00013698,2]
[353965301,1740169833152,-500.0,0.00013698,2]
[353965302,1740169833162,-500.0,0.00013698,2]
[353965303,1740169833171,-500.0,0.00013698,2]
[353965304,1740169833181,-410.8747751,0.00013698,2]
[353965305,1740169833190,-500.0,0.00013698,2]
[353965306,1740169833199,-500.0,0.00013698,2]
[353965307,1740169833212,-154.2596694,0.00013698,2]
[353965308,1740169833222,-500.0,0.00013698,2]
[353965309,1740169833232,-500.0,0.00013698,2]
[353965310,1740169833242,-500.0,0.00013698,2]
[353965311,1740169833252,-500.0,0.00013698,2]
[353965312,1740169833262,-202.69970808,0.00013698,2]
[353965313,1740169833272,-500.0,0.00013698,2]
[353965314,1740169833282,-500.0,0.00013698,2]